fUSD/lending_fUSD_20260531
["ID","MTS","AMOUNT","RATE_DAILY","PERIOD"]
[423513733,1780176632000,-2351.0,0.00012943,2]
[423513747,1780176632000,-2899.32,0.00013671,2]
[423513749,1780176632000,-166.66,0.00013699,2]
[423513743,1780176632000,-152.01,0.00013557,2]
[423513737,1780176632000,-162.99,0.00013186,2]
[423513741,1780176632000,-152.01,0.00013463,2]
[423513751,1780176632000,-727.47,0.00013699,2]
[423513745,1780176632000,-152.01,0.00013651,2]
[423513791,1780176632000,-500.0,0.00013699,2]
[423513802,1780176632000,-608.69233931,0.00013699,2]
[423513795,1780176632000,-500.0,0.00013699,2]
[423513825,1780176632000,-500.0,0.00013699,2]
[423513826,1780176632000,-163.44,0.000137,2]
[423513827,1780176632000,-152.01,0.00013744,2]
[423513829,1780176632000,-166.66,0.00013836,2]
[423513828,1780176632000,-6823.97,0.00013808,2]
[423513833,1780176632000,-1768.85127163,0.00013926,2]
[423513835,1780176632000,-166.66,0.00013973,2]
[423513831,1780176632000,-3615.95795657,0.00013926,2]
[423513830,1780176632000,-152.01,0.00013838,2]
[423513820,1780176632000,-400.0,0.00013699,2]
[423513832,1780176632000,-9948.47587607,0.00013926,2]
[423513836,1780176632000,-32609.05343524,0.0001399,2]
[423513837,1780176632000,-18143.9529063,0.0001399,2]
[423513838,1780176632000,-152.01,0.00014026,2]
[423513840,1780176632000,-3665.12983674,0.00014073,2]
[423513843,1780176632000,-152.01,0.0001412,2]
[423513839,1780176632000,-15333.28510423,0.00014034,2]
[423513842,1780176632000,-166.66,0.0001411,2]
[423513841,1780176632000,-334.87016326,0.00014073,2]
[423513790,1780176632000,-500.0,0.00013699,2]
[423513834,1780176632000,-152.01,0.00013932,2]
[423513822,1780176632000,-500.0,0.00013699,2]
[423513844,1780176632000,-432.01983674,0.00014123,2]
[423513821,1780176632000,-500.0,0.00013699,2]
[423513824,1780176632000,-500.0,0.00013699,2]
[423513799,1780176632000,-500.0,0.00013699,2]
[423513800,1780176632000,-500.0,0.00013699,2]
[423513797,1780176632000,-500.0,0.00013699,2]
[423513801,1780176632000,-500.0,0.00013699,2]
[423513798,1780176632000,-500.0,0.00013699,2]
[423513804,1780176632000,-500.0,0.00013699,2]
[423513803,1780176632000,-500.0,0.00013699,2]
[423513808,1780176632000,-500.0,0.00013699,2]
[423513810,1780176632000,-500.0,0.00013699,2]
[423513809,1780176632000,-500.0,0.00013699,2]
[423513811,1780176632000,-500.0,0.00013699,2]
[423513813,1780176632000,-500.0,0.00013699,2]
[423513815,1780176632000,-500.0,0.00013699,2]
[423513814,1780176632000,-500.0,0.00013699,2]
[423513812,1780176632000,-500.0,0.00013699,2]
[423513817,1780176632000,-500.0,0.00013699,2]
[423513816,1780176632000,-500.0,0.00013699,2]
[423513819,1780176632000,-500.0,0.00013699,2]
[423513823,1780176632000,-500.0,0.00013699,2]
[423513818,1780176632000,-500.0,0.00013699,2]
[423513806,1780176632000,-500.0,0.00013699,2]
[423513845,1780176634000,500.0,0.00028,120]
[423513856,1780176637000,-162.99,0.00014128,2]
[423513855,1780176637000,-131.98016326,0.00014123,2]
[423513858,1780176637000,-152.01,0.00014214,2]
[423513857,1780176637000,-15333.28510423,0.00014142,2]
[423513860,1780176637000,-166.66,0.00014247,2]
[423513861,1780176637000,-15333.28510423,0.00014251,2]
[423513859,1780176637000,-578.0,0.00014238,2]
[423513862,1780176637000,-152.01,0.00014307,2]
[423513891,1780176638000,-229420.0043042,0.00014851,2]
[423513899,1780176638000,-15333.28510423,0.000149,2]
[423513897,1780176638000,-370.4729617,0.000149,2]
[423513894,1780176638000,-36639.84026236,0.00014868,2]
[423513893,1780176638000,-2500.0,0.00014855,2]
[423513898,1780176638000,-36639.84026236,0.000149,2]
[423513895,1780176638000,-36639.84026236,0.00014884,2]
[423513904,1780176638000,-151.0,0.00014997,2]
[423513900,1780176638000,-10653.8560092,0.000149,2]
[423513901,1780176638000,-156.0,0.000149,2]
[423513906,1780176638000,-522.4,0.00014999,2]
[423513919,1780176638000,-522.4,0.00014999,2]
[423513921,1780176638000,-500.0,0.00014999,2]
[423513910,1780176638000,-522.4,0.00014999,2]
[423513914,1780176638000,-522.4,0.00014999,2]
[423513912,1780176638000,-522.4,0.00014999,2]
[423513908,1780176638000,-522.4,0.00014999,2]
[423513923,1780176638000,-500.0,0.00014999,2]
[423513926,1780176638000,-500.0,0.00014999,2]
[423513930,1780176638000,-604.59973657,0.00014999,2]
[423513932,1780176638000,-500.0,0.00014999,2]
[423513934,1780176638000,-500.0,0.00014999,2]
[423513936,1780176638000,-500.0,0.00014999,2]
[423513892,1780176638000,-36639.84026236,0.00014852,2]
[423513940,1780176638000,-500.0,0.00014999,2]
[423513917,1780176638000,-522.4,0.00014999,2]
[423513896,1780176638000,-286.36990829,0.000149,2]
[423513863,1780176638000,-15333.28510423,0.00014359,2]
[423513889,1780176638000,-500.0,0.0001485,2]
[423513939,1780176638000,-500.0,0.00014999,2]
[423513865,1780176638000,-152.01,0.00014401,2]
[423513866,1780176638000,-4000.0,0.00014425,2]
[423513867,1780176638000,-15333.28510423,0.00014467,2]
[423513864,1780176638000,-166.66,0.00014384,2]
[423513869,1780176638000,-200.0,0.00014508,2]
[423513868,1780176638000,-152.01,0.00014495,2]
[423513870,1780176638000,-15333.28510423,0.00014575,2]
[423513872,1780176638000,-152.01,0.00014683,2]
[423513874,1780176638000,-9091.52812522,0.00014703,2]
[423513875,1780176638000,-2500.0,0.00014751,2]
[423513871,1780176638000,-152.01,0.00014589,2]
[423513890,1780176638000,-500.0,0.0001485,2]
[423513873,1780176638000,-15333.28510423,0.00014684,2]
[423513876,1780176638000,-36639.84026236,0.00014755,2]
[423513878,1780176638000,-36639.84026236,0.00014771,2]
[423513880,1780176638000,-4000.0,0.00014777,2]
[423513879,1780176638000,-152.01,0.00014776,2]
[423513881,1780176638000,-36639.84026236,0.00014787,2]
[423513885,1780176638000,-36639.84026236,0.00014819,2]
[423513887,1780176638000,-522.4,0.0001485,2]
[423513886,1780176638000,-36639.84026236,0.00014836,2]
[423513882,1780176638000,-15333.28510423,0.00014792,2]
[423513883,1780176638000,-36639.84026236,0.00014803,2]
[423513884,1780176638000,-187.71242717,0.00014803,10]
[423513888,1780176638000,-500.0,0.0001485,2]
[423513877,1780176638000,-500.0,0.0001477,2]
[423513942,1780176638000,-500.0,0.00014999,2]
[423513928,1780176638000,-500.0,0.00014999,2]
[423513947,1780176638000,-1712150.79235111,0.00015,2]
[423513997,1780176638000,-1600.0,0.00016939,2]
[423514003,1780176638000,-1387.76016046,0.000174,2]
[423514001,1780176638000,-1387.76016046,0.000173,2]
[423514004,1780176638000,-1387.76016046,0.000176,2]
[423514002,1780176638000,-243.896559,0.00017304,2]
[423514006,1780176638000,-1387.76016046,0.000178,2]
[423514005,1780176638000,-9091.52812519,0.00017658,2]
[423514007,1780176638000,-162.99,0.00017895,2]
[423514009,1780176638000,-173.99832511,0.00018,2]
[423514008,1780176638000,-350.0,0.00018,2]
[423514011,1780176638000,-1702.29356295,0.00018,2]
[423514010,1780176638000,-655.44626097,0.00018,2]
[423514000,1780176638000,-1387.76016046,0.000171,2]
[423514015,1780176638000,-655.44626097,0.000182,2]
[423514013,1780176638000,-1387.76016046,0.000181,2]
[423514014,1780176638000,-173.99832511,0.000182,2]
[423514016,1780176638000,-1702.29356295,0.000182,2]
[423514018,1780176638000,-1702.29356295,0.000184,2]
[423514020,1780176638000,-1702.29356295,0.000185,2]
[423514019,1780176638000,-655.44626097,0.000185,2]
[423514017,1780176638000,-655.44626097,0.000184,2]
[423514021,1780176638000,-150.95663103,0.00018684,2]
[423514022,1780176638000,-655.44626097,0.000187,2]
[423514026,1780176638000,-162.99,0.00018837,2]
[423514025,1780176638000,-1600.0,0.00018821,2]
[423514024,1780176638000,-221.07019279,0.00018776,2]
[423514012,1780176638000,-1387.76016046,0.00018,2]
[423513999,1780176638000,-2000.0,0.00017061,2]
[423513945,1780176638000,-500.0,0.00014999,2]
[423513996,1780176638000,-1387.76016046,0.000169,2]
[423513998,1780176638000,-162.99,0.00016953,2]
[423513950,1780176638000,-2079.20142691,0.00015,2]
[423513952,1780176638000,-700.67312814,0.00015,14]
[423513954,1780176638000,-8093.35660595,0.00015,2]
[423513958,1780176638000,-309.88,0.00015,2]
[423513971,1780176638000,-156.0,0.00015,2]
[423514023,1780176638000,-1702.29356295,0.000187,2]
[423513962,1780176638000,-400.0,0.00015,3]
[423513967,1780176638000,-156.0,0.00015,2]
[423513956,1780176638000,-2859523.63614633,0.00015,2]
[423513964,1780176638000,-150.0,0.00015,2]
[423513960,1780176638000,-200.0,0.00015,2]
[423513973,1780176638000,-156.0,0.00015,2]
[423513969,1780176638000,-156.0,0.00015,2]
[423513977,1780176638000,-1600.0,0.00015057,2]
[423513975,1780176638000,-159.0,0.00015,2]
[423513995,1780176638000,-1387.76016046,0.000167,2]
[423513994,1780176638000,-208.83818787,0.00016651,2]
[423513993,1780176638000,-1387.76016046,0.000166,2]
[423513982,1780176638000,-2000.0,0.00015165,2]
[423513991,1780176638000,-5626.32362556,0.00016222,2]
[423513992,1780176638000,-150.0,0.00016466,2]
[423513988,1780176638000,-1000.0,0.00016011,3]
[423513986,1780176638000,-300.0,0.00016,2]
[423513984,1780176638000,-794.67,0.00015605,2]
[423513980,1780176638000,-162.99,0.0001507,2]
[423513990,1780176638000,-162.99,0.00016012,2]
[423514070,1780176639000,-150.99,0.00020145,2]
[423514061,1780176639000,-221.0,0.0002,2]
[423514071,1780176639000,-299.99,0.00020145,7]
[423514068,1780176639000,-500.0,0.00020079,2]
[423514060,1780176639000,-170.0,0.0002,2]
[423514064,1780176639000,-176.22248209,0.0002,2]
[423514065,1780176639000,-176.2224821,0.0002,2]
[423514059,1780176639000,-400.0,0.0002,2]
[423514067,1780176639000,-500.0,0.00020079,2]
[423514066,1780176639000,-794.67,0.00020043,2]
[423514062,1780176639000,-1877.5192379,0.0002,2]
[423514069,1780176639000,-9999.99,0.00020145,2]
[423514063,1780176639000,-176.22248209,0.0002,2]
[423514072,1780176639000,-9999.99,0.00020145,2]
[423514087,1780176639000,-500.0,0.00020681,2]
[423514075,1780176639000,-5468.3,0.00020145,2]
[423514077,1780176639000,-3747.83,0.00020145,2]
[423514074,1780176639000,-1344.08,0.00020145,2]
[423514076,1780176639000,-9999.99,0.00020145,2]
[423514078,1780176639000,-9999.99,0.00020145,2]
[423514080,1780176639000,-1877.5192379,0.000202,2]
[423514081,1780176639000,-2157.14243826,0.00020398,2]
[423514083,1780176639000,-166.49,0.00020582,2]
[423514082,1780176639000,-1877.5192379,0.000204,2]
[423514085,1780176639000,-9091.52812519,0.00020612,2]
[423514084,1780176639000,-1877.5192379,0.000206,2]
[423514086,1780176639000,-500.0,0.00020681,2]
[423514057,1780176639000,-151.0,0.0001985,2]
[423514073,1780176639000,-4999.99,0.00020145,2]
[423514056,1780176639000,-151.0,0.0001985,2]
[423514039,1780176639000,-221.88543241,0.0001985,2]
[423514055,1780176639000,-151.0,0.0001985,2]
[423514027,1780176639000,-370.47296167,0.0001894,2]
[423514028,1780176639000,-2000.0,0.00018957,2]
[423514029,1780176639000,-1000.0,0.00018986,2]
[423514033,1780176639000,-309.88,0.000198,2]
[423514030,1780176639000,-870.81039353,0.00019,2]
[423514031,1780176639000,-1852.42,0.00019763,2]
[423514032,1780176639000,-162.99,0.00019779,2]
[423514036,1780176639000,-151.0,0.0001985,2]
[423514035,1780176639000,-151.0,0.0001985,2]
[423514034,1780176639000,-151.0,0.0001985,2]
[423514041,1780176639000,-230.09519341,0.0001985,2]
[423514038,1780176639000,-151.0,0.0001985,2]
[423514037,1780176639000,-151.0,0.0001985,2]
[423514058,1780176639000,-151.0,0.0001985,2]
[423514040,1780176639000,-151.0,0.0001985,2]
[423514042,1780176639000,-238.60871557,0.0001985,2]
[423514091,1780176639000,-2000.0,0.00020852,2]
[423514044,1780176639000,-151.0,0.0001985,2]
[423514045,1780176639000,-151.0,0.0001985,2]
[423514046,1780176639000,-151.0,0.0001985,2]
[423514047,1780176639000,-151.0,0.0001985,2]
[423514049,1780176639000,-151.0,0.0001985,2]
[423514048,1780176639000,-2080.17592889,0.0001985,2]
[423514051,1780176639000,-151.0,0.0001985,2]
[423514054,1780176639000,-151.0,0.0001985,2]
[423514053,1780176639000,-151.0,0.0001985,2]
[423514050,1780176639000,-151.0,0.0001985,2]
[423514052,1780176639000,-151.0,0.0001985,2]
[423514043,1780176639000,-307.6116164,0.0001985,2]
[423514089,1780176639000,-1600.0,0.00020704,2]
[423514079,1780176639000,-999.99,0.00020145,2]
[423514088,1780176639000,-690.0163157,0.00020683,2]
[423514127,1780176639000,-500.0,0.00022599,2]
[423514126,1780176639000,-2494.55939288,0.0002259,2]
[423514125,1780176639000,-1600.0,0.00022586,2]
[423514123,1780176639000,-286.36990829,0.00022469,2]
[423514129,1780176639000,-2000.0,0.00022748,2]
[423514131,1780176639000,-166.49,0.00022847,2]
[423514128,1780176639000,-500.0,0.00022599,2]
[423514130,1780176639000,-226.77729206,0.00022811,2]
[423514133,1780176639000,-221.0,0.00023,2]
[423514132,1780176639000,-370.47296167,0.00022981,2]
[423514134,1780176639000,-2586.85809042,0.00023138,2]
[423514136,1780176639000,-500.0,0.00023277,2]
[423514141,1780176639000,-1124.0,0.0002369,2]
[423514143,1780176639000,-500.0,0.00023975,2]
[423514138,1780176639000,-458.23678511,0.00023423,2]
[423514137,1780176639000,-188.59,0.00023288,2]
[423514135,1780176639000,-500.0,0.00023277,2]
[423514142,1780176639000,-500.0,0.00023975,2]
[423514139,1780176639000,-9091.52812519,0.00023567,2]
[423514144,1780176639000,-166.49,0.00023979,2]
[423514140,1780176639000,-2682.57183977,0.00023686,2]
[423514146,1780176639000,-221.0,0.00024,2]
[423514145,1780176639000,-500.0,0.00024,2]
[423514147,1780176639000,-4547.45,0.00024029,2]
[423514092,1780176639000,-477.38,0.00020897,2]
[423514148,1780176639000,-151.0,0.00024097,4]
[423514150,1780176639000,-1428.38747117,0.00024165,2]
[423514151,1780176639000,-445.31,0.00024174,2]
[423514152,1780176639000,-258.79,0.00024174,2]
[423514124,1780176639000,-1124.0,0.00022505,2]
[423514119,1780176639000,-221.0,0.00022,2]
[423514149,1780176639000,-249.38,0.0002411,2]
[423514120,1780176639000,-2405.55389863,0.00022042,2]
[423514090,1780176639000,-1877.5192379,0.000208,2]
[423514122,1780176639000,-285.0,0.00022466,2]
[423514094,1780176639000,-2236.95670847,0.00020946,2]
[423514095,1780176639000,-221.0,0.00021,2]
[423514096,1780176639000,-477.38,0.00021013,2]
[423514098,1780176639000,-477.38,0.00021245,2]
[423514097,1780176639000,-477.38,0.00021129,2]
[423514100,1780176639000,-500.0,0.00021302,2]
[423514105,1780176639000,-221.07019279,0.00021592,2]
[423514101,1780176639000,-477.38,0.00021361,2]
[423514103,1780176639000,-477.38,0.00021477,2]
[423514104,1780176639000,-2319.72410669,0.00021494,2]
[423514102,1780176639000,-899.2,0.0002138,2]
[423514099,1780176639000,-500.0,0.00021302,2]
[423514093,1780176639000,-350.0,0.00020908,3]
[423514107,1780176639000,-150.59612135,0.00021693,7]
[423514106,1780176639000,-477.38,0.00021593,2]
[423514121,1780176639000,-210.7,0.000221,14]
[423514117,1780176639000,-1000.0,0.00022,3]
[423514113,1780176639000,-5000.0,0.00021918,2]
[423514114,1780176639000,-500.0,0.00021941,2]
[423514110,1780176639000,-166.49,0.00021714,2]
[423514115,1780176639000,-500.0,0.00021941,2]
[423514116,1780176639000,-477.43,0.00021942,2]
[423514111,1780176639000,-10596.3,0.00021757,2]
[423514112,1780176639000,-477.38,0.00021825,2]
[423514108,1780176639000,-150.0,0.00021693,7]
[423514109,1780176639000,-477.38,0.00021709,2]
[423514118,1780176639000,-450.0,0.00022,2]
[423514190,1780176640000,-388.76,0.00025,2]
[423514185,1780176640000,-388.76,0.00025,2]
[423514186,1780176640000,-388.76,0.00025,2]
[423514184,1780176640000,-225.0,0.00025,2]
[423514193,1780176640000,-388.76,0.00025,2]
[423514183,1780176640000,-303597.97829465,0.00025,2]
[423514187,1780176640000,-388.76,0.00025,2]
[423514189,1780176640000,-388.76,0.00025,2]
[423514195,1780176640000,-532.0,0.00025082,2]
[423514181,1780176640000,-169.87055243,0.00025,2]
[423514197,1780176640000,-664.61,0.00025115,30]
[423514191,1780176640000,-388.76,0.00025,2]
[423514192,1780176640000,-388.76,0.00025,2]
[423514196,1780176640000,-151.0,0.00025097,4]
[423514198,1780176640000,-544.95,0.00025115,30]
[423514199,1780176640000,-500.0,0.00025235,2]
[423514200,1780176640000,-1536.04360648,0.00025261,2]
[423514206,1780176640000,-544.95,0.00025343,2]
[423514201,1780176640000,-200.0,0.0002529,2]
[423514203,1780176640000,-150.0,0.00025309,2]
[423514202,1780176640000,-18009.96,0.00025309,2]
[423514182,1780176640000,-1047.61960593,0.00025,2]
[423514204,1780176640000,-2991.49051684,0.0002533,2]
[423514194,1780176640000,-388.76,0.00025,2]
[423514177,1780176640000,-3089.70004707,0.00025,2]
[423514167,1780176640000,-544.95,0.00024886,7]
[423514180,1780176640000,-2233.98693747,0.00025,2]
[423514205,1780176640000,-664.61,0.00025343,2]
[423514154,1780176640000,-2781.82699784,0.00024234,2]
[423514157,1780176640000,-1000.0,0.00024658,2]
[423514153,1780176640000,-9560.0,0.00024174,2]
[423514156,1780176640000,-794.67,0.00024481,2]
[423514155,1780176640000,-151.0,0.00024324,2]
[423514159,1780176640000,-664.61,0.00024658,2]
[423514160,1780176640000,-544.95,0.00024658,2]
[423514158,1780176640000,-307.55,0.00024658,2]
[423514162,1780176640000,-500.0,0.00024695,2]
[423514161,1780176640000,-500.0,0.00024695,2]
[423514169,1780176640000,-300.0,0.00024999,10]
[423514166,1780176640000,-664.61,0.00024886,7]
[423514163,1780176640000,-1481.2378076,0.00024713,2]
[423514164,1780176640000,-2884.75459676,0.00024782,2]
[423514165,1780176640000,-1124.0,0.00024874,2]
[423514168,1780176640000,-888.0,0.00024945,2]
[423514170,1780176640000,-1130.91318434,0.00025,2]
[423514171,1780176640000,-210.65590756,0.00025,2]
[423514173,1780176640000,-1812.12667451,0.00025,2]
[423514172,1780176640000,-750.94759601,0.00025,60]
[423514176,1780176640000,-620.08650724,0.00025,2]
[423514175,1780176640000,-540.0,0.00025,2]
[423514179,1780176640000,-168711.43026542,0.00025,7]
[423514174,1780176640000,-1686.39177885,0.00025,2]
[423514178,1780176640000,-7237.32857736,0.00025,2]
[423514209,1780176640000,-532.0,0.00025637,2]
[423514188,1780176640000,-388.76,0.00025,2]
[423514210,1780176640000,-1414.47,0.00025761,2]
[423514241,1780176640000,-664.61,0.00026943,7]
[423514240,1780176640000,-711.16093774,0.00026905,2]
[423514245,1780176640000,-167.28740431,0.00027,2]
[423514246,1780176640000,-370.47296167,0.00027021,2]
[423514243,1780176640000,-152.99005483,0.00026952,2]
[423514244,1780176640000,-200.0,0.0002696,2]
[423514242,1780176640000,-544.95,0.00026943,7]
[423514248,1780176640000,-532.0,0.00027301,4]
[423514250,1780176640000,-426.95197685,0.00027397,2]
[423514247,1780176640000,-10653.85600918,0.00027035,2]
[423514249,1780176640000,-4517.780945,0.0002739,7]
[423514252,1780176640000,-1500.0,0.00027397,2]
[423514254,1780176640000,-307.55,0.00027397,2]
[423514255,1780176640000,-647.75,0.00027397,20]
[423514251,1780176640000,-182.97941865,0.00027397,2]
[423514253,1780176640000,-300.0,0.00027397,2]
[423514256,1780176640000,-8486.41,0.00027397,10]
[423514259,1780176640000,-1106.14,0.000274,7]
[423514257,1780176640000,-15784.89,0.00027397,10]
[423514258,1780176640000,-13154.08,0.00027397,10]
[423514261,1780176640000,-1124.0,0.00027424,5]
[423514260,1780176640000,-322.22,0.000274,7]
[423514262,1780176640000,-1295.38,0.0002744,7]
[423514263,1780176640000,-3852.14469991,0.000275,2]
[423514208,1780176640000,-544.95,0.00025572,7]
[423514238,1780176640000,-300.0,0.00026723,10]
[423514239,1780176640000,-532.0,0.00026746,3]
[423514207,1780176640000,-664.61,0.00025572,7]
[423514234,1780176640000,-603.2226976,0.00026512,2]
[423514213,1780176640000,-258.79,0.00025786,2]
[423514212,1780176640000,-445.31,0.00025786,2]
[423514211,1780176640000,-605.72356,0.00025767,2]
[423514229,1780176640000,-151.0,0.00026296,2]
[423514215,1780176640000,-664.61,0.000258,30]
[423514216,1780176640000,-544.95,0.000258,30]
[423514217,1780176640000,-1592.87721992,0.00025809,2]
[423514220,1780176640000,-664.61,0.00026029,2]
[423514214,1780176640000,-9560.0,0.00025786,2]
[423514218,1780176640000,-550.0,0.00026,2]
[423514221,1780176640000,-544.95,0.00026029,2]
[423514223,1780176640000,-1124.0,0.00026118,2]
[423514219,1780176640000,-500.0,0.00026,2]
[423514222,1780176640000,-210.86201537,0.00026097,4]
[423514231,1780176640000,-443.50107073,0.00026393,2]
[423514230,1780176640000,-1651.81367706,0.00026357,2]
[423514224,1780176640000,-200.0,0.00026174,2]
[423514232,1780176640000,-664.61,0.00026486,30]
[423514235,1780176640000,-9091.52812519,0.00026521,2]
[423514226,1780176640000,-300.0,0.00026229,10]
[423514225,1780176640000,-532.0,0.00026192,3]
[423514227,1780176640000,-664.61,0.00026257,7]
[423514237,1780176640000,-544.95,0.00026714,2]
[423514228,1780176640000,-544.95,0.00026257,7]
[423514233,1780176640000,-544.95,0.00026486,30]
[423514236,1780176640000,-664.61,0.00026714,2]
[423514265,1780176641000,-474.50808334,0.000275,2]
[423514264,1780176641000,-72214.29896905,0.000275,2]
[423514286,1780176643000,-1120.46297691,0.000275,2]
[423514285,1780176643000,-1291.94,0.0002744,7]
[423514284,1780176643000,-500.0,0.00021494,3]
[423514288,1780176644000,9568.13,0.00027364,120]
[423514289,1780176645000,-566.78356024,0.000149,2]
[423514290,1780176646000,-826.65575396,0.000149,2]
[423514292,1780176646000,-1255.03613553,0.00027397,2]
[423514293,1780176646000,-244.96386447,0.00027397,2]
[423514291,1780176646000,-614.0,0.00025082,2]
[423514294,1780176646000,-1453.80681439,0.000275,2]
[423514296,1780177752000,1000.0,0.00027999,120]
[423514302,1780177831000,-175.51264232,0.00010199,2]
[423514303,1780177831000,-156.21168621,0.00010298,2]
[423514334,1780177832000,-209.53,0.00013544,2]
[423514353,1780177832000,-500.0,0.00013699,2]
[423514352,1780177832000,-500.0,0.00013699,2]
[423514350,1780177832000,-500.0,0.00013699,2]
[423514348,1780177832000,-4547.45,0.00013689,2]
[423514344,1780177832000,-1852.42,0.00013659,2]
[423514340,1780177832000,-251.92,0.00013626,2]
[423514356,1780177832000,-500.0,0.00013699,2]
[423514342,1780177832000,-8407.1,0.00013627,2]
[423514338,1780177832000,-1782.42,0.00013586,2]
[423514336,1780177832000,-150.0,0.00013556,2]
[423514346,1780177832000,-181.0,0.00013667,2]
[423514355,1780177832000,-500.0,0.00013699,2]
[423514366,1780177832000,-4925.97,0.00013896,2]
[423514358,1780177832000,-251.92,0.00013702,2]
[423514360,1780177832000,-251.92,0.00013777,2]
[423514364,1780177832000,-18009.96,0.00013864,2]
[423514361,1780177832000,-166.66,0.00013813,2]
[423514359,1780177832000,-3292.0,0.00013707,2]
[423514370,1780177832000,-250.0,0.00013952,2]
[423514367,1780177832000,-3718.75,0.00013902,2]
[423514365,1780177832000,-500.0,0.00013878,2]
[423514368,1780177832000,-251.92,0.00013928,2]
[423514369,1780177832000,-159.1,0.00013941,2]
[423514371,1780177832000,-4281.85,0.00013965,2]
[423514357,1780177832000,-200.86923393,0.00013699,2]
[423514332,1780177832000,-3162.74,0.00013415,2]
[423514319,1780177832000,-99283.99924832,0.000103,2]
[423514329,1780177832000,-151.88459519,0.00012461,2]
[423514304,1780177832000,-75.16598258,0.00010298,2]
[423514306,1780177832000,-584.71520251,0.00010298,2]
[423514305,1780177832000,-424.83401742,0.00010298,2]
[423514307,1780177832000,-300.0,0.00010298,2]
[423514309,1780177832000,-1200.0,0.00010298,2]
[423514308,1780177832000,-300.0,0.00010298,2]
[423514311,1780177832000,-482.39446355,0.00010299,2]
[423514312,1780177832000,-500.0,0.00010299,2]
[423514310,1780177832000,-500.0,0.00010299,2]
[423514372,1780177832000,-250.0,0.00014,2]
[423514317,1780177832000,-160.48162912,0.00010299,2]
[423514318,1780177832000,-307.44678734,0.00010299,2]
[423514316,1780177832000,-500.0,0.00010299,2]
[423514315,1780177832000,-500.0,0.00010299,2]
[423514314,1780177832000,-150.0,0.00010299,2]
[423514313,1780177832000,-274.60226264,0.00010299,2]
[423514321,1780177832000,-150.0,0.00010505,2]
[423514320,1780177832000,-150.0,0.00010402,2]
[423514331,1780177832000,-1245.11540481,0.00012461,2]
[423514326,1780177832000,-420.0,0.00011324,2]
[423514327,1780177832000,-1680.0,0.00011328,2]
[423514328,1780177832000,-433.0,0.00012441,2]
[423514323,1780177832000,-250.0,0.00011219,2]
[423514322,1780177832000,-500.0,0.00010547,2]
[423514325,1780177832000,-373.0,0.00011324,2]
[423514324,1780177832000,-255.0,0.00011319,2]
[423514330,1780177832000,-954.0,0.00012461,2]
[423514333,1780177832000,-1414.47,0.00013526,2]
[423514373,1780177832000,-500.0,0.00014,2]
[423514362,1780177832000,-251.92,0.00013852,2]
[423514374,1780177832000,-251.92,0.00014003,2]
[423514413,1780177832000,-513.85021918,0.00014803,2]
[423514409,1780177832000,-500.0,0.0001477,2]
[423514407,1780177832000,-416.10004967,0.0001477,2]
[423514414,1780177832000,-251.92,0.00014834,2]
[423514408,1780177832000,-500.0,0.0001477,2]
[423514417,1780177832000,-500.0,0.0001485,2]